fUSD/lending_fUSD_20250616
["ID","MTS","AMOUNT","RATE_DAILY","PERIOD"]
[366080051,1750053044965,-1901.52,0.00016438,2]
[366080052,1750053044975,-10092.74,0.00016438,2]
[366080053,1750053044985,-609.73,0.00016438,2]
[366080054,1750053044994,-490.0,0.00016438,2]
[366080055,1750053045005,-490.0,0.00016438,2]
[366080056,1750053045016,-490.0,0.00016438,2]
[366080057,1750053045026,-491.99752988,0.00016438,2]
[366080058,1750053045036,-1585.17,0.00016438,2]
[366080059,1750053045046,-1718.95,0.00016438,2]
[366080060,1750053045055,-422.05225712,0.00016438,2]
[366080061,1750053045065,-976.52,0.00016438,2]
[366080062,1750053045075,-490.0,0.00016438,2]
[366080063,1750053045084,-2332.13,0.00016438,2]
[366080064,1750053045094,-490.0,0.00016438,2]
[366080065,1750053045103,-9329.79,0.00016438,2]
[366080066,1750053045113,-490.0,0.00016438,2]
[366080067,1750053045122,-490.0,0.00016438,2]
[366080068,1750053045132,-490.0,0.00016438,2]
[366080069,1750053045142,-490.0,0.00016438,2]
[366080070,1750053045151,-491.96164906,0.00016438,2]
[366080071,1750053045161,-397.81115585,0.00016438,2]
[366080072,1750053045171,-555.59,0.00016438,2]
[366080073,1750053045181,-490.0,0.00016438,2]
[366080074,1750053045191,-490.0,0.00016438,2]
[366080075,1750053045201,-490.0,0.00016438,2]
[366080076,1750053045210,-490.0,0.00016438,2]
[366080077,1750053045220,-530.50467146,0.00016438,2]
[366080078,1750053045230,-737.23,0.00016438,2]
[366080079,1750053045240,-490.0,0.00016438,2]
[366080080,1750053045250,-9837.95,0.00016438,2]
[366080081,1750053045260,-490.0,0.00016438,2]
[366080082,1750053045270,-493.11991115,0.00016438,2]
[366080083,1750053045280,-1078.78,0.00016438,2]
[366080084,1750053045290,-2233.71,0.00016438,2]
[366080085,1750053045299,-490.0,0.00016438,2]
[366080086,1750053045309,-5800.22,0.00016438,2]
[366080087,1750053045319,-361.07701783,0.00016438,2]
[366080088,1750053045329,-3829.03,0.00016438,2]
[366080089,1750053045339,-602.23,0.00016438,2]
[366080090,1750053045350,-490.0,0.00016438,2]
[366080091,1750053045360,-1631.73,0.00016438,2]
[366080092,1750053045370,-490.0,0.00016438,2]
[366080093,1750053045380,-949.5,0.00016438,2]
[366080094,1750053045389,-490.0,0.00016438,2]
[366080095,1750053045399,-483.2988675,0.00016438,2]
[366080096,1750053045410,-1146.6,0.00016438,2]
[366080097,1750053045420,-804.19,0.00016438,2]
[366080098,1750053045430,-1835.2,0.00016438,2]
[366080099,1750053045440,-328.05762343,0.00016438,2]
[366080100,1750053045450,-490.0,0.00016438,2]
[366080101,1750053045460,-1655.79,0.00016438,2]
[366080102,1750053045470,-490.0,0.00016438,2]
[366080103,1750053045480,-490.0,0.00016438,2]
[366080104,1750053045490,-490.0,0.00016438,2]
[366080105,1750053045499,-490.0,0.00016438,2]
[366080106,1750053045510,-3317.78,0.00016438,2]
[366080107,1750053045521,-11273.24,0.00016438,2]
[366080108,1750053045530,-632.94,0.00016438,2]
[366080109,1750053045540,-490.0,0.00016438,2]
[366080110,1750053045550,-490.0,0.00016438,2]
[366080111,1750053045560,-1895.76,0.00016438,2]
[366080112,1750053045570,-1274.53,0.00016438,2]
[366080113,1750053045581,-490.0,0.00016438,2]
[366080114,1750053045591,-1844.89,0.00016438,2]
[366080115,1750053045600,-843.28,0.00016438,2]
[366080116,1750053045610,-4581.61,0.00016438,2]
[366080117,1750053045619,-526.1,0.00016438,2]
[366080118,1750053045629,-490.0,0.00016438,2]
[366080119,1750053045639,-490.0,0.00016438,2]
[366080120,1750053045648,-490.0,0.00016438,2]
[366080121,1750053045658,-490.0,0.00016438,2]
[366080122,1750053045668,-490.0,0.00016438,2]
[366080123,1750053045677,-1225.78,0.00016438,2]
[366080124,1750053045687,-490.0,0.00016438,2]
[366080125,1750053045696,-490.0,0.00016438,2]
[366080126,1750053045706,-1006.74,0.00016438,2]
[366080127,1750053045715,-6886.72,0.00016438,2]
[366080128,1750053045725,-490.0,0.00016438,2]
[366080129,1750053045735,-824.26,0.00016438,2]
[366080130,1750053045747,-508.79,0.00016438,2]
[366080131,1750053045756,-1608.98,0.00016438,2]
[366080132,1750053045766,-383.1466226,0.00016438,2]
[366080133,1750053045775,-490.0,0.00016438,2]
[366080134,1750053045785,-490.0,0.00016438,2]
[366080135,1750053045797,-825.96,0.00016438,2]
[366080136,1750053045807,-492.90063709,0.00016438,2]
[366080137,1750053045816,-643.42,0.00016438,2]
[366080138,1750053045827,-2344.96,0.00016438,2]
[366080139,1750053045836,-520.61,0.00016438,2]
[366080140,1750053045850,-490.0,0.00016438,2]
[366080141,1750053045859,-490.0,0.00016438,2]
[366080142,1750053045869,-1258.46,0.00016438,2]
[366080143,1750053045879,-888.42,0.00016438,2]
[366080144,1750053045888,-7060.12,0.00016438,2]
[366080145,1750053045898,-2273.98,0.00016438,2]
[366080146,1750053045908,-24963.31,0.00016438,2]
[366080147,1750053045918,-2976.88,0.00016438,2]
[366080148,1750053045927,-1240.94,0.00016438,2]
[366080149,1750053045938,-964.8,0.00016438,2]
[366080150,1750053045947,-3336.16,0.00016438,2]
[366080151,1750053045957,-490.0,0.00016438,2]
[366080152,1750053045966,-490.0,0.00016438,2]
[366080153,1750053045976,-1330.17,0.00016438,2]
[366080154,1750053045985,-490.0,0.00016438,2]
[366080155,1750053045994,-1043.59,0.00016438,2]
[366080156,1750053046004,-490.0,0.00016438,2]
[366080157,1750053046014,-490.0,0.00016438,2]
[366080158,1750053046023,-490.0,0.00016438,2]
[366080159,1750053046033,-2463.19,0.00016438,2]
[366080160,1750053046043,-2248.61,0.00016438,2]
[366080161,1750053046053,-610.08,0.00016438,2]
[366080162,1750053046062,-1258.28,0.00016438,2]
[366080163,1750053046072,-1972.15,0.00016438,2]
[366080164,1750053046081,-490.0,0.00016438,2]
[366080165,1750053046092,-490.0,0.00016438,2]
[366080166,1750053046101,-1946.57,0.00016438,2]
[366080167,1750053046111,-790.9,0.00016438,2]
[366080168,1750053046120,-490.0,0.00016438,2]
[366080169,1750053046130,-864.59,0.00016438,2]
[366080170,1750053046139,-159.99973,0.00016438,2]
[366080171,1750053046149,-1080.58,0.00016438,2]
[366080172,1750053046158,-1815.11,0.00016438,2]
[366080173,1750053046168,-490.54487417,0.00016438,2]
[366080174,1750053046177,-575.47,0.00016438,2]
[366080175,1750053046186,-3977.37,0.00016438,2]
[366080176,1750053046196,-495.6,0.00016438,2]
[366080177,1750053046206,-490.0,0.00016438,2]
[366080178,1750053046215,-1138.13,0.00016438,2]
[366080179,1750053046225,-490.0,0.00016438,2]
[366080180,1750053046234,-2888.75,0.00016438,2]
[366080181,1750053046244,-8297.97,0.00016438,2]
[366080182,1750053046254,-1660.28,0.00016438,2]
[366080183,1750053046264,-786.38,0.00016438,2]
[366080184,1750053046274,-1283.32,0.00016438,2]
[366080185,1750053046285,-490.0,0.00016438,2]
[366080186,1750053046297,-525.79,0.00016438,2]
[366080187,1750053046307,-1686.28,0.00016438,2]
[366080188,1750053046316,-12470.61,0.00016438,2]
[366080189,1750053046327,-655.73,0.00016438,2]
[366080190,1750053046336,-490.0,0.00016438,2]
[366080191,1750053046346,-960.13,0.00016438,2]
[366080192,1750053046356,-808.43,0.00016438,2]
[366080193,1750053046366,-490.0,0.00016438,2]
[366080194,1750053046377,-490.0,0.00016438,2]
[366080195,1750053046387,-1778.96,0.00016438,2]
[366080196,1750053046397,-506.89722738,0.00016438,2]
[366080197,1750053046407,-979.5,0.00016438,2]
[366080198,1750053046416,-490.0,0.00016438,2]
[366080199,1750053046427,-8748.53,0.00016438,2]
[366080200,1750053046437,-1214.47,0.00016438,2]
[366080201,1750053046447,-490.0,0.00016438,2]
[366080202,1750053046457,-858.72,0.00016438,2]
[366080203,1750053046467,-490.0,0.00016438,2]
[366080204,1750053046476,-1287.91,0.00016438,2]
[366080205,1750053046486,-975.37,0.00016438,2]
[366080206,1750053046495,-490.0,0.00016438,2]
[366080207,1750053046505,-490.0,0.00016438,2]
[366080208,1750053046515,-2795.33,0.00016438,2]
[366080209,1750053046525,-490.0,0.00016438,2]
[366080210,1750053046534,-24137.62,0.00016438,2]
[366080211,1750053046544,-490.0,0.00016438,2]
[366080212,1750053046554,-490.0,0.00016438,2]
[366080213,1750053046565,-490.0,0.00016438,2]
[366080214,1750053046575,-845.81,0.00016438,2]
[366080215,1750053046585,-579.63,0.00016438,2]
[366080216,1750053046595,-504.43675865,0.00016438,2]
[366080217,1750053046605,-1274.39,0.00016438,2]
[366080218,1750053046614,-490.0,0.00016438,2]
[366080219,1750053046624,-490.0,0.00016438,2]
[366080220,1750053046634,-490.0,0.00016438,2]
[366080221,1750053046643,-733.13,0.00016438,2]
[366080222,1750053046652,-491.47103858,0.00016438,2]
[366080223,1750053046662,-500.0,0.00016438,2]
[366080224,1750053046672,-500.0,0.00016438,2]
[366080225,1750053046682,-500.0,0.00016438,2]
[366080226,1750053046692,-932.75,0.00016438,2]
[366080227,1750053046702,-490.0,0.00016438,2]
[366080228,1750053046711,-1303.2,0.00016438,2]
[366080229,1750053046721,-1217.39,0.00016438,2]
[366080230,1750053046731,-3540.13,0.00016438,2]
[366080231,1750053046742,-490.0,0.00016438,2]
[366080232,1750053046754,-200.0,0.00016438,2]
[366080233,1750053046764,-1596.32,0.00016438,2]
[366080234,1750053046774,-490.0,0.00016438,2]
[366080235,1750053046784,-588.69,0.00016438,2]
[366080236,1750053046795,-490.0,0.00016438,2]
[366080237,1750053046805,-994.0,0.00016438,2]
[366080238,1750053046815,-5524.73,0.00016438,2]
[366080239,1750053046829,-1437.53,0.00016438,2]
[366080240,1750053046838,-494.35590155,0.00016438,2]
[366080241,1750053046848,-1885.28,0.00016438,2]
[366080242,1750053046858,-1480.61,0.00016438,2]
[366080243,1750053046868,-756.82,0.00016438,2]
[366080244,1750053046878,-492.93260265,0.00016438,2]
[366080245,1750053046888,-1813.85,0.00016438,2]
[366080246,1750053046897,-490.0,0.00016438,2]
[366080247,1750053046907,-490.0,0.00016438,2]
[366080248,1750053046916,-3688.07,0.00016438,2]
[366080249,1750053046926,-490.0,0.00016438,2]
[366080250,1750053046936,-490.0,0.00016438,2]
[366080251,1750053046946,-490.0,0.00016438,2]
[366080252,1750053046955,-1492.28,0.00016438,2]
[366080253,1750053046965,-493.89243088,0.00016438,2]
[366080254,1750053046974,-4252.08,0.00016438,2]
[366080255,1750053046984,-1033.42,0.00016438,2]
[366080256,1750053046993,-490.0,0.00016438,2]
[366080257,1750053047003,-4642.99,0.00016438,2]
[366080258,1750053047014,-490.0,0.00016438,2]
[366080259,1750053047024,-641.89,0.00016438,2]
[366080260,1750053047034,-490.0,0.00016438,2]
[366080261,1750053047044,-595.27,0.00016438,2]
[366080262,1750053047053,-1526.35,0.00016438,2]
[366080263,1750053047063,-1343.5,0.00016438,2]
[366080264,1750053047073,-497.51912115,0.00016438,2]
[366080265,1750053047082,-1473.27,0.00016438,2]
[366080266,1750053047092,-2504.81,0.00016438,2]
[366080267,1750053047102,-3989.33,0.00016438,2]
[366080268,1750053047112,-18176.22,0.00016438,2]
[366080269,1750053047122,-660.28,0.00016438,2]
[366080270,1750053047132,-1033.28,0.00016438,2]
[366080271,1750053047142,-490.0,0.00016438,2]
[366080272,1750053047151,-161.95542812,0.00016438,2]
[366080273,1750053047160,-1684.04,0.00016438,2]
[366080274,1750053047170,-2142.65,0.00016438,2]
[366080275,1750053047179,-795.34,0.00016438,2]
[366080276,1750053047189,-1216.02,0.00016438,2]
[366080277,1750053047199,-490.0,0.00016438,2]
[366080278,1750053047209,-490.0,0.00016438,2]
[366080279,1750053047219,-490.0,0.00016438,2]
[366080280,1750053047228,-490.0,0.00016438,2]
[366080281,1750053047238,-150.0,0.00016438,2]
[366080282,1750053047247,-671.80158326,0.00016457,2]
[366080283,1750053047258,-500.0,0.00016473,2]
[366080284,1750053047267,-500.0,0.00016473,2]
[366080285,1750053047277,-500.0,0.00016473,2]
[366080286,1750053047287,-1469.61208099,0.00016473,2]
[366080287,1750053047297,-151.0,0.0001649,2]
[366080288,1750053047307,-30000.0,0.000165,2]
[366080289,1750053047317,-158.57490966,0.00016516,2]
[366080290,1750053047327,-671.80158326,0.00016516,2]
[366080291,1750053047337,-833.8156298,0.0001652,2]
[366080292,1750053047347,-198.0,0.00016556,2]
[366080293,1750053047357,-671.80158326,0.00016576,2]
[366080294,1750053047367,-3417.95,0.000166,2]
[366080295,1750053047377,-58906.19541333,0.000166,2]
[366080296,1750053047386,-4048.38111004,0.000166,2]
[366080297,1750053047396,-183.58112232,0.000166,2]
[366080298,1750053047405,-500.0,0.000166,2]
[366080299,1750053047415,-500.0,0.000166,2]
[366080300,1750053047425,-500.0,0.000166,2]
[366080301,1750053047434,-513.31659919,0.000166,2]
[366080302,1750053047443,-305.83097038,0.000166,2]
[366080303,1750053047453,-198.19,0.00016601,2]
[366080304,1750053047463,-500.0,0.00016601,2]
[366080305,1750053047472,-500.0,0.00016601,2]
[366080306,1750053047482,-500.0,0.00016601,2]
[366080307,1750053047492,-471.88797676,0.00016601,2]
[366080308,1750053047502,-491.36768013,0.00016602,2]
[366080309,1750053047512,-490.0,0.00016602,2]
[366080310,1750053047522,-490.0,0.00016602,2]
[366080311,1750053047531,-200.0,0.00016602,2]
[366080312,1750053047541,-490.0,0.00016602,2]
[366080313,1750053047550,-591.97733761,0.00016602,2]
[366080314,1750053047561,-490.0,0.00016602,2]
[366080315,1750053047571,-490.0,0.00016602,2]
[366080316,1750053047581,-152.03,0.00016602,2]
[366080317,1750053047591,-490.0,0.00016602,2]
[366080318,1750053047600,-490.0,0.00016602,2]
[366080319,1750053047610,-490.0,0.00016602,2]
[366080320,1750053047619,-698.31,0.00016602,2]
[366080321,1750053047632,-698.51,0.00016602,2]
[366080322,1750053047641,-490.0,0.00016602,2]
[366080323,1750053047651,-490.0,0.00016602,2]
[366080324,1750053047661,-638.35,0.00016602,2]
[366080325,1750053047670,-490.0,0.00016602,2]
[366080326,1750053047679,-490.0,0.00016602,2]
[366080327,1750053047689,-490.0,0.00016602,2]
[366080328,1750053047699,-490.0,0.00016602,2]
[366080329,1750053047708,-490.0,0.00016602,2]
[366080330,1750053047719,-490.0,0.00016602,2]
[366080331,1750053047731,-288.65960048,0.00016602,2]
[366080332,1750053047741,-499.94,0.00016602,2]
[366080333,1750053047753,-490.0,0.00016602,2]
[366080334,1750053047763,-490.0,0.00016602,2]
[366080335,1750053047774,-490.0,0.00016602,2]
[366080336,1750053047784,-364.99890038,0.00016602,2]
[366080337,1750053047794,-490.0,0.00016602,2]
[366080338,1750053047804,-490.0,0.00016602,2]
[366080339,1750053047813,-490.0,0.00016602,2]
[366080340,1750053047823,-490.0,0.00016602,2]
[366080341,1750053047832,-677.88,0.00016602,2]
[366080342,1750053047842,-490.0,0.00016602,2]
[366080343,1750053047852,-151.0,0.00016602,2]
[366080344,1750053047862,-582.51,0.00016602,2]
[366080345,1750053047871,-490.0,0.00016602,2]
[366080346,1750053047881,-490.0,0.00016602,2]
[366080347,1750053047892,-491.80789948,0.00016602,2]
[366080348,1750053047902,-490.0,0.00016602,2]
[366080349,1750053047912,-245.562981,0.00016602,2]
[366080350,1750053047921,-490.0,0.00016602,2]
[366080351,1750053047931,-490.0,0.00016602,2]
[366080352,1750053047940,-490.0,0.00016602,2]
[366080353,1750053047950,-490.0,0.00016602,2]
[366080354,1750053047960,-490.0,0.00016602,2]
[366080355,1750053047970,-490.0,0.00016602,2]
[366080356,1750053047979,-501.77,0.00016602,2]
[366080357,1750053047988,-490.0,0.00016602,2]
[366080358,1750053048000,-490.0,0.00016602,2]
[366080359,1750053048010,-490.0,0.00016602,2]
[366080360,1750053048020,-417.55403247,0.00016602,2]
[366080361,1750053048030,-490.0,0.00016602,2]
[366080362,1750053048040,-490.0,0.00016602,2]
[366080363,1750053048050,-158.501302,0.00016602,2]
[366080364,1750053048060,-490.0,0.00016602,2]
[366080365,1750053048070,-490.0,0.00016602,2]
[366080366,1750053048080,-499.07,0.00016602,2]
[366080367,1750053048090,-540.47,0.00016602,2]
[366080368,1750053048100,-551.07,0.00016602,2]
[366080369,1750053048110,-490.0,0.00016602,2]
[366080370,1750053048120,-490.0,0.00016602,2]
[366080371,1750053048130,-490.0,0.00016602,2]
[366080372,1750053048140,-490.0,0.00016602,2]
[366080373,1750053048150,-490.0,0.00016602,2]
[366080374,1750053048160,-490.0,0.00016602,2]
[366080375,1750053048409,-932.84,0.00016602,2]
[366080376,1750053048422,-490.0,0.00016602,2]
[366080377,1750053048433,-151.0,0.00016602,2]
[366080378,1750053048444,-490.0,0.00016602,2]
[366080379,1750053048454,-490.0,0.00016602,2]
[366080380,1750053048464,-490.0,0.00016602,2]
[366080381,1750053048474,-151.0,0.00016602,2]
[366080382,1750053048484,-490.0,0.00016602,2]
[366080383,1750053048495,-490.0,0.00016602,2]
[366080384,1750053048505,-490.0,0.00016602,2]
[366080385,1750053048516,-490.0,0.00016602,2]
[366080386,1750053048527,-490.0,0.00016602,2]
[366080387,1750053048536,-490.0,0.00016602,2]
[366080388,1750053048547,-200.0,0.00016602,2]
[366080389,1750053048557,-921.64,0.00016602,2]
[366080390,1750053048567,-722.35,0.00016602,2]
[366080391,1750053048577,-151.0,0.00016602,2]
[366080392,1750053048588,-1254.53,0.00016602,2]
[366080393,1750053048598,-490.0,0.00016602,2]
[366080394,1750053048608,-773.57,0.00016602,2]
[366080395,1750053048618,-490.0,0.00016602,2]
[366080396,1750053048628,-716.51,0.00016602,2]
[366080397,1750053048638,-589.038002,0.00016602,2]
[366080398,1750053048649,-490.0,0.00016602,2]
[366080399,1750053048659,-151.0,0.00016602,2]
[366080400,1750053048670,-490.0,0.00016602,2]
[366080401,1750053048680,-589.038002,0.00016602,2]
[366080402,1750053048690,-490.0,0.00016602,2]
[366080403,1750053048700,-490.0,0.00016602,2]
[366080404,1750053048710,-490.0,0.00016602,2]
[366080405,1750053048720,-189.277504,0.00016602,2]
[366080406,1750053048730,-1355.69,0.00016602,2]
[366080407,1750053048742,-608.86,0.00016602,2]
[366080408,1750053048754,-151.0,0.00016602,2]
[366080409,1750053048763,-989.85,0.00016602,2]
[366080410,1750053048773,-490.0,0.00016602,2]
[366080411,1750053048784,-490.0,0.00016602,2]
[366080412,1750053048797,-1392.74,0.00016602,2]
[366080413,1750053048807,-490.0,0.00016602,2]
[366080414,1750053048817,-151.0,0.00016602,2]
[366080415,1750053048829,-490.0,0.00016602,2]
[366080416,1750053048839,-1120.84,0.00016602,2]
[366080417,1750053048849,-539.93,0.00016602,2]
[366080418,1750053048859,-521.71,0.00016602,2]
[366080419,1750053048869,-490.0,0.00016602,2]
[366080420,1750053048879,-490.0,0.00016602,2]
[366080421,1750053048889,-1093.22,0.00016602,2]
[366080422,1750053048899,-752.53,0.00016602,2]
[366080423,1750053048910,-490.0,0.00016602,2]
[366080424,1750053048920,-490.0,0.00016602,2]
[366080425,1750053048930,-672.94,0.00016602,2]
[366080426,1750053048940,-1062.19,0.00016602,2]
[366080427,1750053048951,-490.0,0.00016602,2]
[366080428,1750053048962,-490.0,0.00016602,2]
[366080429,1750053048972,-490.0,0.00016602,2]
[366080430,1750053048983,-275.476253,0.00016602,2]
[366080431,1750053048993,-490.0,0.00016602,2]
[366080432,1750053049003,-834.24,0.00016602,2]
[366080433,1750053049014,-527.77,0.00016602,2]
[366080434,1750053049025,-1256.09,0.00016602,2]
[366080435,1750053049035,-665.36,0.00016602,2]
[366080436,1750053049046,-490.0,0.00016602,2]
[366080437,1750053049056,-490.0,0.00016602,2]
[366080438,1750053049066,-201.23,0.00016602,2]
[366080439,1750053049078,-1452.55,0.00016602,2]
[366080440,1750053049088,-976.26,0.00016602,2]
[366080441,1750053049098,-921.11,0.00016602,2]
[366080442,1750053049108,-490.0,0.00016602,2]
[366080443,1750053049119,-490.0,0.00016602,2]
[366080444,1750053049129,-490.0,0.00016602,2]
[366080445,1750053049139,-524.39,0.00016602,2]
[366080446,1750053049149,-1117.19,0.00016602,2]
[366080447,1750053049160,-490.0,0.00016602,2]
[366080448,1750053049170,-695.2,0.00016602,2]
[366080449,1750053049180,-1017.46,0.00016602,2]
[366080450,1750053049191,-1769.94,0.00016602,2]
[366080451,1750053049201,-709.31,0.00016602,2]
[366080452,1750053049211,-1336.5,0.00016602,2]
[366080453,1750053049221,-600.77,0.00016602,2]
[366080454,1750053049232,-490.0,0.00016602,2]
[366080455,1750053049241,-647.16,0.00016602,2]
[366080456,1750053049252,-590.83,0.00016602,2]
[366080457,1750053049262,-1558.56,0.00016602,2]
[366080458,1750053049273,-559.76,0.00016602,2]
[366080459,1750053049283,-490.0,0.00016602,2]
[366080460,1750053049293,-151.0,0.00016602,2]
[366080461,1750053049303,-1531.72,0.00016602,2]
[366080462,1750053049313,-1302.57,0.00016602,2]
[366080463,1750053049324,-490.0,0.00016602,2]
[366080464,1750053049335,-1132.25,0.00016602,2]
[366080465,1750053049345,-490.0,0.00016602,2]
[366080466,1750053049355,-490.0,0.00016602,2]
[366080467,1750053049366,-1397.53,0.00016602,2]
[366080468,1750053049377,-490.0,0.00016602,2]
[366080469,1750053049387,-1946.28,0.00016602,2]
[366080470,1750053049397,-641.94,0.00016602,2]
[366080471,1750053049407,-1420.48,0.00016602,2]
[366080472,1750053049417,-1282.74,0.00016602,2]
[366080473,1750053049427,-490.0,0.00016602,2]
[366080474,1750053049438,-731.58,0.00016602,2]
[366080475,1750053049448,-1855.51,0.00016602,2]
[366080476,1750053049458,-642.11,0.00016602,2]
[366080477,1750053049469,-490.0,0.00016602,2]
[366080478,1750053049479,-490.0,0.00016602,2]
[366080479,1750053049489,-490.0,0.00016602,2]
[366080480,1750053049499,-151.0,0.00016602,2]
[366080481,1750053049510,-1710.71,0.00016602,2]
[366080482,1750053049520,-490.0,0.00016602,2]
[366080483,1750053049530,-1040.56,0.00016602,2]
[366080484,1750053049540,-573.78,0.00016602,2]
[366080485,1750053049551,-845.9,0.00016602,2]
[366080486,1750053049560,-1081.26,0.00016602,2]
[366080487,1750053049570,-606.65,0.00016602,2]
[366080488,1750053049580,-606.536263,0.00016602,2]
[366080489,1750053049591,-674.3,0.00016602,2]
[366080490,1750053049600,-606.536263,0.00016602,2]
[366080491,1750053049610,-151.0,0.00016602,2]
[366080492,1750053049620,-374.33,0.00016602,2]
[366080493,1750053049630,-494.84,0.00016602,2]
[366080494,1750053049640,-1140.49,0.00016602,2]
[366080495,1750053049650,-490.0,0.00016602,2]
[366080496,1750053049660,-151.0,0.00016602,2]
[366080497,1750053049670,-1521.83,0.00016602,2]
[366080498,1750053049680,-834.08,0.00016602,2]
[366080499,1750053049690,-598.91,0.00016602,2]
[366080500,1750053049700,-490.0,0.00016602,2]
[366080501,1750053049710,-490.0,0.00016602,2]
[366080502,1750053049720,-1148.26,0.00016602,2]
[366080503,1750053049730,-152.960072,0.00016602,2]
[366080504,1750053049740,-566.19,0.00016602,2]
[366080505,1750053049754,-490.0,0.00016602,2]
[366080506,1750053049764,-969.1,0.00016602,2]
[366080507,1750053049774,-226.36437,0.00016602,2]
[366080508,1750053049784,-706.94,0.00016602,2]
[366080509,1750053049794,-490.0,0.00016602,2]
[366080510,1750053049804,-490.0,0.00016602,2]
[366080511,1750053049814,-151.0,0.00016602,2]
[366080512,1750053049824,-490.0,0.00016602,2]
[366080513,1750053049835,-781.17,0.00016602,2]
[366080514,1750053049845,-226.36437,0.00016602,2]
[366080515,1750053049855,-833.28,0.00016602,2]
[366080516,1750053049864,-1382.24,0.00016602,2]
[366080517,1750053049874,-1395.28,0.00016602,2]
[366080518,1750053049883,-1906.53,0.00016602,2]
[366080519,1750053049894,-490.0,0.00016602,2]
[366080520,1750053049903,-695.02,0.00016602,2]
[366080521,1750053049914,-490.0,0.00016602,2]
[366080522,1750053049923,-619.14,0.00016602,2]
[366080523,1750053049934,-2282.55,0.00016602,2]
[366080524,1750053049944,-645.86,0.00016602,2]
[366080525,1750053049954,-545.65,0.00016602,2]
[366080526,1750053049964,-151.0,0.00016602,2]
[366080527,1750053049974,-682.27,0.00016602,2]
[366080528,1750053049984,-833.15,0.00016602,2]
[366080529,1750053049994,-151.0,0.00016602,2]
[366080530,1750053050004,-490.0,0.00016602,2]
[366080531,1750053050014,-490.0,0.00016602,2]
[366080532,1750053050024,-1795.86,0.00016602,2]
[366080533,1750053050033,-1260.29,0.00016602,2]
[366080534,1750053050043,-490.0,0.00016602,2]
[366080535,1750053050054,-490.0,0.00016602,2]
[366080536,1750053050064,-695.72,0.00016602,2]
[366080537,1750053050074,-496.55,0.00016602,2]
[366080538,1750053050083,-2535.1,0.00016602,2]
[366080539,1750053050093,-546.2,0.00016602,2]
[366080540,1750053050103,-490.0,0.00016602,2]
[366080541,1750053050113,-800.55,0.00016602,2]
[366080542,1750053050123,-151.0,0.00016602,2]
[366080543,1750053050133,-910.53,0.00016602,2]
[366080544,1750053050142,-490.0,0.00016602,2]
[366080545,1750053050152,-1188.98,0.00016602,2]
[366080546,1750053050162,-490.0,0.00016602,2]
[366080547,1750053050171,-490.0,0.00016602,2]
[366080548,1750053050181,-151.0,0.00016602,2]
[366080549,1750053050190,-878.3,0.00016602,2]
[366080550,1750053050200,-1164.26,0.00016602,2]